Cogmind - Beta 10.2 @@@ ROGUE MODE // 2021.05.13 @ 16:20:35 Player: John1001 Result: Destroyed by Y-45 Defender with Heavy Assault Rifle Performance ------------- Evolutions (2) 1000 Regions Visited (5) 1000 Robots Destroyed (33) 165 Value Destroyed (714) 714 Prototype IDs (3) 60 Alien Tech Used (0) 0 Bonus (0) 0 TOTAL SCORE: 2939 Bonus ------- None Cogmind --------- Core Integrity 0/550 Matter 91/300 Energy 85/100 System Corruption 0% Temperature Cool (9) Movement Core (50) Location -8/Materials Parts ------- > --- POWER (1) -------- (None) > --- PROPULSION (4) --- (None) > --- UTILITY (4) ------ Advanced Sensor Array Power Shielding > --- WEAPON (2) ------- (None) > --- INVENTORY (4) ---- Light Nuclear Core Improved Deuterium Engine Particle Cannon Heavy Mace Peak State ------------ > --- POWER ------------ Improved Deuterium Engine > --- PROPULSION ------- Flight Unit Flight Unit Flight Unit Flight Unit > --- UTILITY ---------- Advanced Sensor Array Melee Analysis Suite Maneuvering Thrusters Power Shielding > --- WEAPON ----------- Heavy Mace Heavy Mace > --- INVENTORY -------- Light Deuterium Engine Light Nuclear Core Particle Cannon [Rating: 24] Favorites ----------- Power Ion Engine Engine Ion Engine Propulsion Aluminum Leg Leg Aluminum Leg Flight Unit Flight Unit Utility Power Shielding Device Advanced Sensor Array Storage Small Storage Unit Processor Melee Analysis Suite Protection Power Shielding Weapon Mini Grenade Launcher Energy Gun Small Laser Energy Cannon Particle Cannon Ballistic Gun Light Assault Rifle Launcher Mini Grenade Launcher Special Weapon Plasma Cutter Impact Weapon Heavy Hammer Build | -11 -10 -10 -9 -9 -8 ------- Run | Scr Mat Min Mat Min Mat Slots Evolved 4 | . . . 2 . 2 Power . | . . . . . . Propulsion 2 | . . . 1 . 1 Utility 2 | . . . 1 . 1 Weapon . | . . . . . . Parts Attached 46 | 6 10 1 4 6 19 Power 7 | 1 . . 1 1 4 Engine 7 | 1 . . 1 1 4 Core . | . . . . . . Reactor . | . . . . . . Propulsion 15 | 2 4 1 . 2 6 Treads . | . . . . . . Leg 8 | 2 4 1 . . 1 Wheel . | . . . . . . Hover . | . . . . . . Flight 7 | . . . . 2 5 Utility 7 | 1 1 . 1 . 4 Device 4 | . . . 1 . 3 Storage 1 | 1 . . . . . Processor 1 | . . . . . 1 Hackware . | . . . . . . Protection 1 | . 1 . . . . Artifact . | . . . . . . Weapon 17 | 2 5 . 2 3 5 Energy Gun 2 | . 2 . . . . Energy Cannon 1 | . . . . . 1 Ballistic Gun 2 | 2 . . . . . Ballistic Cannon . | . . . . . . Launcher 6 | . 3 . 1 1 1 Special Weapon 2 | . . . . 2 . Impact Weapon 4 | . . . 1 . 3 Slashing Weapon . | . . . . . . Piercing Weapon . | . . . . . . Special Melee Weapon . | . . . . . . Unidentified Prototypes 1 | . . . . . 1 Parts Lost 16 | . 1 . 2 4 9 Power 1 | . . . . 1 . Propulsion 7 | . . . 1 1 5 Utility 3 | . . . . . 3 Weapon 5 | . 1 . 1 2 1 Highest Loss Streak 5 | . 1 . 2 2 5 Average Slot Usage (%) 79 | . 99 100 74 68 57 Engine 11 | . 14 14 11 10 8 Leg 14 | . 28 28 16 4 . Flight 8 | . . . . 16 18 Device 5 | . . . 2 11 10 Storage 7 | . 14 14 11 2 . Protection 11 | . 13 14 11 11 9 Ballistic Gun 7 | . 20 . . . . Launcher 9 | . 4 28 21 8 4 Impact Weapon 1 | . . . . 2 2 Naked Turns . | . . . . . . Heaviest Build 18 | 12 14 14 18 18 16 Greatest Support 20 | 20 20 20 20 10 16 Greatest Overweight (x) 2 | 2 . . 1 1 2 Average Overweight (x) . | . . . . . . Largest Inventory Capacity 6 | 6 6 6 6 6 4 Average Capacity 5 | 5 6 6 6 4 4 Most Carried 6 | 2 6 6 6 5 4 Average Carried 4 | 1 5 5 5 3 3 Final Capacity 6 | 6 6 6 6 4 4 Final Carried 6 | 2 6 5 5 4 4 Class Distribution -------------------- 95% | Mutant 4% | Scavenger-Sprinter Dominant Class ---------------- Mutant | -10/Materials Mutant | -10/Mines Mutant | -9/Materials Mutant | -9/Mines Mutant | -8/Materials Resources | -11 -10 -10 -9 -9 -8 ----------- Run | Scr Mat Min Mat Min Mat Matter Collected 823 | 239 229 7 28 213 107 Remotely . | . . . . . . Salvage Created 693 | . 449 14 95 21 114 Parts 50 | . 28 4 1 4 13 Haulers Intercepted . | . . . . . . Recyclers Shooed . | . . . . . . Parts Field Recycled . | . . . . . . Retrieved Matter . | . . . . . . Parts Self-Destructed . | . . . . . . Prevented . | . . . . . . Kills | -11 -10 -10 -9 -9 -8 ------- Run | Scr Mat Min Mat Min Mat Combat Hostiles Destroyed 26 | . 12 3 4 3 4 Guns 10 | . 10 . . . . Cannons 1 | . . . . . 1 AOE 15 | . 2 3 4 3 3 Classes Destroyed 10 | . 5 . 2 2 1 Worker 4 | . 3 . . . 1 Builder 2 | . 1 . . . 1 Tunneler 1 | . . . . 1 . Operator 1 | . . . . . 1 Watcher 2 | . 1 . . . 1 Swarmer 9 | . 3 3 . . 3 Grunt 11 | . 9 . 2 . . Brawler 1 | . . . 1 . . Sentry 2 | . . . 1 . 1 Assembled 3 | . . . . 3 . Best Kill Streak 5 | . 4 3 3 4 5 Combat Bots Only 3 | . 3 3 3 3 3 Max Kills in Single Turn 3 | . 2 3 3 1 2 Gunslinging . | . . . . . . Exploded 3 | . 1 3 3 1 2 Melee . | . . . . . . Uniques/NPCs Destroyed . | . . . . . . Combat | -11 -10 -10 -9 -9 -8 -------- Run | Scr Mat Min Mat Min Mat Damage Taken 2305 | . 583 56 185 524 957 Core 839 | . 95 23 46 117 558 Absorbed by Shields . | . . . . . . Core Remaining (%) 70 | 100 . 52 . 59 . Volleys Fired 73 | . 45 1 6 13 8 Largest 2 | . 2 2 2 1 1 Hottest 100 | . 60 60 60 100 68 Shots Fired 121 | . 90 2 8 13 8 Gun 83 | . 83 . . . . Cannon 1 | . . . . . 1 Launcher 31 | . 7 2 8 7 7 Special 6 | . . . . 6 . Kinetic 77 | . 77 . . . . Thermal 13 | . 6 . . 6 1 Explosive 31 | . 7 2 8 7 7 Electromagnetic . | . . . . . . Robot Hit Streak 14 | . 14 1 . 2 3 Robot Miss Streak 4 | . 4 1 1 3 1 Penetration Max . | . . . . . . Secondary Targets 2 | . 2 . . . . Max Gunslinging Chain 1 | . 1 . . . . Shots Hit Robots 71 | . 60 1 . 2 8 Core Hits 60 | . 33 3 10 5 9 Critical Hits . | . . . . . . Critical Kills . | . . . . . . Critical Parts Destroyed . | . . . . . . Melee Attacks 5 | . . . 1 . 4 Impact 5 | . . . 1 . 4 Slashing . | . . . . . . Piercing . | . . . . . . Sneak Attacks . | . . . . . . Combat Hostiles . | . . . . . . Follow-up Attacks 1 | . . . . . 1 Damage Inflicted 2293 | . 885 156 429 216 607 Guns 586 | . 586 . . . . Cannons 21 | . . . . . 21 Explosions 1582 | . 299 154 429 216 484 Melee 102 | . . . . . 102 Ramming 2 | . . 2 . . . Kinetic 518 | . 518 . . . . Thermal 89 | . 68 . . . 21 Explosive 1582 | . 299 154 429 216 484 Electromagnetic . | . . . . . . Impact 102 | . . . . . 102 Slashing . | . . . . . . Piercing . | . . . . . . Highest Corruption 1 | . . . . 1 . Average Corruption 1 | . . . . 1 . Corruption Purged . | . . . . . . Overload Shots . | . . . . . . Overflow Damage 36 | . . . . . 36 Projectiles . | . . . . . . Explosions 36 | . . . . . 36 Melee . | . . . . . . Knockbacks . | . . . . . . Impact . | . . . . . . Kinetic . | . . . . . . Secondary . | . . . . . . Self-Inflicted Damage 174 | . . 48 32 63 31 Shots 7 | . . 1 1 3 2 Rammed 1 | . . 1 . . . Targets Rammed 1 | . . 1 . . . Kicked . | . . . . . . Crushed . | . . . . . . Highest Temperature 61 | . 61 . 9 20 28 Average Temperature 16 | . 18 . 4 10 13 Received Heat Transfer 669 | . 192 . 54 36 387 Siege Activations . | . . . . . . Robots Corrupted . | . . . . . . Combat Hostiles . | . . . . . . Parts Fried . | . . . . . . Impact Corruptions . | . . . . . . Robots Melted . | . . . . . . Combat Hostiles . | . . . . . . Parts Melted . | . . . . . . Heat Transferred 187 | . 150 . . . 37 Parts Sabotaged . | . . . . . . Parts Stolen . | . . . . . . Parts Stripped . | . . . . . . Power Chain Reactions . | . . . . . . Missiles Intercepted . | . . . . . . Alert | -11 -10 -10 -9 -9 -8 ------- Run | Scr Mat Min Mat Min Mat Peak Influence 243 | . 238 142 165 64 243 Initial 72 | . . 72 55 64 . Average 103 | . 129 113 124 46 122 Maximum Alert Level 1 | . 1 . . . 1 Low Security (%) 86 | 100 89 100 100 100 54 Level 1 13 | . 10 . . . 45 Level 2 . | . . . . . . Level 3 . | . . . . . . Level 4 . | . . . . . . Level 5 . | . . . . . . High Security . | . . . . . . Max Security . | . . . . . . Squads Dispatched 6 | . 3 . 1 . 2 Investigation 2 | . 1 . . . 1 Extermination . | . . . . . . Reinforcement 4 | . 2 . 1 . 1 Assault . | . . . . . . Garrison . | . . . . . . Intercept . | . . . . . . Construction Impeded 1 | . . . 1 . . Haulers Reinforced . | . . . . . . Stealth | -11 -10 -10 -9 -9 -8 --------- Run | Scr Mat Min Mat Min Mat Distress Signals 1 | . 1 . . . . Communications Jammed . | . . . . . . Distress Signals . | . . . . . . Times Spotted 56 | . 15 3 5 12 21 Peak Tracking Total 10 | . 4 3 3 8 10 Tactical Retreats 1 | . . . . 1 . Traps | -11 -10 -10 -9 -9 -8 ------- Run | Scr Mat Min Mat Min Mat Traps Triggered 1 | . 1 . . . . Indirectly . | . . . . . . Trap Hack Attempts . | . . . . . . Triggered . | . . . . . . Disarmed . | . . . . . . Reprogrammed . | . . . . . . Reused . | . . . . . . Traps Extracted . | . . . . . . Installed . | . . . . . . Triggered . | . . . . . . Machines | -11 -10 -10 -9 -9 -8 ---------- Run | Scr Mat Min Mat Min Mat Machines Disabled 2 | . 2 . . . . Max in Single Turn 2 | . 2 . . . . Machines Sabotaged . | . . . . . . Garrisons Compromised . | . . . . . . Overloaded Fab Kills . | . . . . . . Fab Network Shutdowns . | . . . . . . Hacking | -11 -10 -10 -9 -9 -8 --------- Run | Scr Mat Min Mat Min Mat Machines Accessed 15 | . 6 . 3 . 6 Terminals 8 | . 3 . 2 . 3 Fabricators . | . . . . . . Repair Stations 2 | . 1 . . . 1 Recycling Units 4 | . 2 . 1 . 1 Scanalyzers 1 | . . . . . 1 Garrison Access . | . . . . . . Total Hacks 53 | . 17 . 6 . 30 Successful 30 | . 9 . 3 . 18 Failed 23 | . 8 . 3 . 12 Catastrophic 2 | . 1 . . . 1 Database Lockouts . | . . . . . . Manual 16 | . 5 . 4 . 7 Terminals 27 | . 10 . 4 . 13 Fabricators . | . . . . . . Repair Stations 12 | . 3 . . . 9 Recycling Units 9 | . 4 . 2 . 3 Scanalyzers 5 | . . . . . 5 Garrison Access . | . . . . . . Terminal Hacks 11 | . 4 . 1 . 6 Prototype ID Bank 1 | . . . . . 1 Branch Access Points 3 | . 1 . 1 . 1 Recall Investigation 2 | . 1 . . . 1 Recall Reinforcements 1 | . . . . . 1 Zone Layout 4 | . 2 . . . 2 Fabricator Hacks . | . . . . . . Repair Station Hacks 9 | . 2 . . . 7 Scan Component 5 | . 1 . . . 4 Repair 4 | . 1 . . . 3 Recycling Unit Hacks 6 | . 3 . 2 . 1 Report Inventory 4 | . 2 . 1 . 1 Retrieve Matter 1 | . . . 1 . . Retrieve Components 1 | . 1 . . . . Scanalyzer 4 | . . . . . 4 Insert Component 2 | . . . . . 2 Analyze 2 | . . . . . 2 Garrison Access Hacks . | . . . . . . Unauthorized Hacks . | . . . . . . Terminals . | . . . . . . Fabricators . | . . . . . . Repair Stations . | . . . . . . Recycling Units . | . . . . . . Scanalyzers . | . . . . . . Garrison Access . | . . . . . . Data Cores Recovered 1 | . . . . . 1 Used . | . . . . . . Hacking Detections 11 | . 3 . 2 . 6 Full Trace Events 2 | . . . . . 2 Feedback Events . | . . . . . . Feedback Blocked . | . . . . . . Robot Schematics Acquired . | . . . . . . Robots Built . | . . . . . . Matter . | . . . . . . Time . | . . . . . . Total Robot Build Rating . | . . . . . . Part Schematics Acquired 2 | . . . . . 2 Parts Built . | . . . . . . Matter . | . . . . . . Time . | . . . . . . Total Part Build Rating . | . . . . . . Parts Repaired 4 | . 1 . . . 3 Time 116 | . 26 . . . 90 Parts Recycled . | . . . . . . Recycled Matter . | . . . . . . Retrieved Matter . | . . . . . . Retrieved Components 2 | . 2 . . . . Parts Scanalyzed 2 | . . . . . 2 Part Schematics Acquired 2 | . . . . . 2 Parts Damaged . | . . . . . . Bothacking | -11 -10 -10 -9 -9 -8 ------------ Run | Scr Mat Min Mat Min Mat Used RIF Installer . | . . . . . . Robots Hacked . | . . . . . . Non-combat . | . . . . . . Combat . | . . . . . . Robot Hacks Applied . | . . . . . . Relay Couplers Released . | . . . . . . Robots Rewired . | . . . . . . Allies Hacked . | . . . . . . Hacks Repelled . | . . . . . . Allies | -11 -10 -10 -9 -9 -8 -------- Run | Scr Mat Min Mat Min Mat Total Allies 2 | . . . . 2 . Largest Group 2 | . . . . 2 . Highest-Rated Group 42 | . . . . 42 . Highest-Rated Ally 31 | . . . . 31 . Total Orders . | . . . . . . Ally Attacks 4 | . . . . 4 . Total Damage 43 | . . . . 43 . Kills . | . . . . . . Allies Corrupted . | . . . . . . Allies Melted . | . . . . . . Intel | -11 -10 -10 -9 -9 -8 ------- Run | Scr Mat Min Mat Min Mat Robot Analysis Total . | . . . . . . Derelict Logs Recovered 1 | . . . . 1 . Drone Launches . | . . . . . . Drone Recoveries . | . . . . . . Exploration | -11 -10 -10 -9 -9 -8 ------------- Run | Scr Mat Min Mat Min Mat Turns Passed 1704 | 48 585 96 195 409 371 Spaces Moved 1619 | 33 336 76 124 669 381 Core 54 | 7 . . . . 47 Treads . | . . . . . . Legs 643 | 26 336 76 124 68 13 Wheels . | . . . . . . Hover . | . . . . . . Flight 922 | . . . . 601 321 Fastest Speed 31 | 50 120 120 120 37 31 Average Speed 74 | 112 120 120 131 50 45 Slowest Speed 150 | 150 120 120 150 150 150 Overloaded Moves . | . . . . . . Propulsion Burnouts . | . . . . . . Robots Hopped 13 | . . . . 11 2 Cave-ins Triggered . | . . . . . . Exploration Rate (%) 37 | 3 57 19 14 94 35 Regions Visited 5 Branch Regions 2 Pre-discovered Areas . | . . . . . . Known Exits Taken 2 | . 1 . 1 . . Unknown Exits Taken 3 | 1 . 1 . 1 . Scrap Searched 2 | . . . . 2 . Spaces Dug 27 | . . . . 27 . Terrain Destroyed 207 | . 24 19 45 76 43 Melee . | . . . . . . Projectile . | . . . . . . AOE 207 | . 24 19 45 76 43 Terrain Rammed . | . . . . . . Walls Destroyed . | . . . . . . Machines Disabled . | . . . . . . Actions | -11 -10 -10 -9 -9 -8 --------- Run | Scr Mat Min Mat Min Mat Total 1972 | 40 437 79 148 708 560 Wait 198 | . 30 . 6 28 134 Move 1590 | 32 335 75 123 648 377 Hop 11 | . . . . 9 2 Pick Up 21 | 2 9 . 4 1 5 Fast Attach 25 | 6 5 . 1 2 11 Attach 16 | . 3 1 2 4 6 Detach 8 | . 1 . 1 2 4 Swap 5 | . 2 . 1 . 2 Drop 20 | . 7 1 3 1 8 Fire 73 | . 45 1 6 13 8 Melee 4 | . . . 1 . 3 Ram . | . . . . . . Kick 1 | . . 1 . . . Crush . | . . . . . . Escape Stasis . | . . . . . . Rewire . | . . . . . . Trap . | . . . . . . Miscellaneous . | . . . . . . Route ------- -11/Scrapyard -10/Materials (discovered 2 exits: *Mat / *Min) -10/Mines -9/Materials (discovered 2 exits: *Min x2) -9/Mines (discovered 2 exits: *Mat x2) -8/Materials (discovered 1 exit: Sto) History --------- Turn | Location | Event 14 | -11/Scrapyard | Discovered new exit (range 15) 49 | -11/Scrapyard | Entered Materials 301 | -10/Materials | Build established: Mutant 424 | -10/Materials | Discovered new exit (range 14) 445 | -10/Materials | Identified exit to Mines 551 | -10/Materials | Repaired Grenade Launcher 634 | -10/Materials | Entered Mines 714 | -10/Mines | Discovered new exit (range 15) 730 | -10/Mines | Entered Materials 730 | -9/Materials | Evolved 2 slots: Propulsion x1, Utility x1 826 | -9/Materials | Discovered new exit (range 15) 898 | -9/Materials | Identified exit to Mines 925 | -9/Materials | Entered Mines 957 | -9/Mines | Found a hidden stash of uninstalled traps 985 | -9/Mines | Learned Materials garrison access intel 1016 | -9/Mines | Assembled infested the area 1021 | -9/Mines | Assisted by a Guerilla fighting off Assembled 1033 | -9/Mines | Discovered new exit (range 12) 1041 | -9/Mines | Discovered new exit (range 6) 1334 | -9/Mines | Entered Materials 1334 | -8/Materials | Evolved 2 slots: Propulsion x1, Utility x1 1335 | -8/Materials | Loaded intel: 1 garrison access location 1362 | -8/Materials | Repaired Flight Unit 1390 | -8/Materials | Repaired Flight Unit 1429 | -8/Materials | Repaired Adv. Sensor Array 1480 | -8/Materials | Identified exit to Storage 1656 | -8/Materials | Lost 3 parts (3n) 1673 | -8/Materials | Core integrity fell below 50% 1700 | -8/Materials | Core integrity fell below 20% 1705 | -8/Materials | Destroyed by Y-45 Defender with Heavy Assault Rifle Last Messages --------------- 01679_ G-47 Trooper destroyed. 01679_ T-07 Excavator destroyed. 01679_ G-47 Trooper destroyed. 01679_ U-05 Engineer destroyed. 01679_ K-01 Serf collects debris. 01680_ Dropped Lgt. Deuterium Engine. 01683_ Acquired Adv. Sensor Array. 01690_ K-01 Serf collects debris. 01695_ U-05 Engineer lays Concrete. 01697_ U-05 Engineer builds a Wall. 01697_ U-05 Engineer lays Concrete. 01698_ Acquired 8 matter. 01698_ K-01 Serf collects debris. 01698_ U-05 Engineer lays Concrete. 01699_ K-01 Serf collects debris. 01700_ K-01 Serf destroyed. 01701_ U-05 Engineer lays Concrete. 01701_ R-06 Scavenger collects Lgt. Treads. 01702_ U-05 Engineer lays Concrete. 01702_ R-06 Scavenger collects Prototype Energy Gun. Map ----- +----------------------------------------------------+ | ????????? #???### #???#####?????# """ | | ????????? ##### #####"T"####### | | ?????????? = [ | ##+### | | ??????????? %[%% |! | | ???????????? " % [ | | | ??????????????# "G" %[ | | ??????????????# " " * [ # *!!###### | | ??????########?# ## *! ###### | | ??????# # # *! # | | ??????# """ # !! ## "T" # | | ??????# """ + !! % # # """ # | | ??????# """ # ! ?? ## + | | ??????# [ # ? ! ## # | | ??????# """ ?# ? ?? %= ########### # | | ??????# """ ?# #####?## ###?????????# # | | ??????+ """ ??# # ? # #???????????# # | | ???????? ??# # # #??????????##+###### | | ???????? ###???# / # #??????????# / | | ???????????????# # # #??????????#""""" | | ???????????????# # # #??????????#""""" | | ???????????????# # # ############""""" | | ??????????????? ######## ## #""""" | | ??????????????? #??????# ## #""""" | | ?????????????? #?????## ## """ """ #""""" ] | | ?????????? ####### # """ """ #""""" | | ?????????? @ # """ """ # | | ??????????????## Y + """ """ ######### | | ???????????????# # # """ | | ???????????????########### ]# # "Y" | | ?????????????????????????##k ############ | | ??????????????????????????# # #???# | | ??????????????????????????# # T #???# | | ??????????????????????????# + #???# """ | | ??????????????????????????? # #???# """ | | ??????????????????????????? # #???# """ | | ??????????????????????????? # #???# | | ??????????????????????????? ########???######### | | ??????????????????????????? #??????????# "T" | | ??????????????????????????? #??????????# | | ???????????????????????????? #??????????# | | ????????????????????????????? #??????????# | | | ????????????????????????????? #??????????#####+### | | ????????????????????????????? #??????????????# #?? | | ?????????????????????????????#####???????????# #?? | | ????????????????????????????? #???????????# ### | | ????????????????????????????? #???????????# | | ?????????????????????????????" #???????????# | | ?????????????????????????????"" #???????????# | | ?????????????????????????????"" #???????????# | | ?????????????????????????????"" #???????????## | +----------------------------------------------------+ Best States ------------- Heat Dissipation 31 Energy Generation 16 Energy Capacity 290 Matter Stores 300 Matter Capacity 300 Sight Range 16 Robot Scan Range 16 Terrain Scan Density 10 Power Shielding 33 Evasion (%) 69 Melee Accuracy 5 Item Schematics ----------------- Lgt. Deuterium Engine | -8/Materials | Scanalyzed Flight Unit | -8/Materials | Scanalyzed Robot Schematics ------------------ None Fabricated ------------ Nothing Alien Tech Used ----------------- None Achievements -------------- None Challenges ------------ None Game ------ Seed TerrainScatterImmobilizer Manual? 0 Play Time 01:01:59 Cumulative 39.2 hours Start 2021.05.13 @ 15:11:36 End 2021.05.13 @ 16:20:35 Sessions 1 Manual Loads 0 Difficulty Rogue Special Mode None Game No. 15 Rogue 12 Adventurer 0 Explorer 3 Win Type - Total 0 Types 0/0/0/0/0/0/0/0/0 Lore% 44 Gallery% 34 Achievement% 34 Wizard Run 0 Options --------- ASCII 0 Keyboard 1 Movement Numpad Keybinds 0 Fullscreen 1 Font 18/Terminus Map View 76x50 Tactical HUD 1 Map Filters NONE Filters NONE Steam 1 RUN: 8361ec9e-8e27-4ed4-bcfd-5d6db20a1c9e